bitfinex/quotes_BTCUSD_20220204
["timestamp","ask_amount","ask_price","bid_price","bid_amount"]
[1643996050930,1.0,40295.0,40294.0,5.19378885]
[1643996052434,1.0,40295.0,40294.0,4.85639785]
[1643996052631,2.0,40295.0,40294.0,4.85639785]
[1643996053234,2.40792812,40295.0,40294.0,4.85639741]
[1643996054035,2.40792812,40295.0,40294.0,4.84510966]
[1643996054482,2.40792812,40295.0,40294.0,4.97896365]
[1643996055083,2.40792812,40295.0,40294.0,6.01635365]
[1643996055084,2.0,40295.0,40294.0,6.01635365]
[1643996055484,1.80000001,40295.0,40294.0,5.31635365]
[1643996055685,1.80000001,40295.0,40294.0,5.36635365]
[1643996056786,1.80000001,40295.0,40294.0,4.41635365]
[1643996057385,0.91630775,40295.0,40294.0,4.41635365]
[1643996057589,0.35,40316.0,40297.0,0.05]
[1643996057789,0.35,40316.0,40311.0,0.05]
[1643996057989,0.7,40314.0,40312.0,4.73836672]
[1643996058236,0.50564335,40314.0,40313.0,4.68866672]
[1643996058429,0.50564335,40314.0,40313.0,4.84033923]
[1643996058629,0.50564335,40314.0,40313.0,4.99033923]
[1643996058830,0.50564335,40314.0,40313.0,4.94033923]
[1643996059029,0.4709382,40314.0,40313.0,4.94033923]
[1643996059631,0.4339382,40314.0,40313.0,4.94033923]
[1643996060033,0.4339382,40314.0,40313.0,5.12634423]
[1643996060430,0.4339382,40314.0,40313.0,4.12634423]
[1643996060831,0.59130197,40314.0,40313.0,4.12634423]
[1643996061034,0.59130197,40314.0,40313.0,3.84033923]
[1643996061035,1.04629175,40314.0,40313.0,3.84033923]
[1643996061234,0.4339382,40314.0,40313.0,0.0497]
[1643996062080,0.4339382,40314.0,40312.0,0.112011]
[1643996062279,0.4339382,40314.0,40312.0,0.062011]
[1643996064788,0.4339382,40314.0,40311.0,0.1497]
[1643996064991,0.4339382,40314.0,40311.0,5.04349352]
[1643996065184,0.36803614,40313.0,40311.0,5.04349352]
[1643996065735,0.36803614,40313.0,40311.0,4.99349352]
[1643996066534,0.4339382,40314.0,40311.0,4.99349352]
[1643996066737,1.6,40313.0,40312.0,4.91650915]
[1643996066942,1.6,40313.0,40302.0,0.124043]
[1643996066943,0.1153271,40312.0,40302.0,0.124043]
[1643996067238,0.1153271,40312.0,40308.0,0.01931002]
[1643996067239,0.06203,40312.0,40308.0,0.01931002]
[1643996067641,0.4339382,40314.0,40311.0,0.05]
[1643996067837,0.8239362,40314.0,40312.0,4.91650915]
[1643996068036,0.8239362,40314.0,40308.0,0.01931002]
[1643996068037,0.8239362,40314.0,40313.0,4.91650915]
[1643996068440,0.8239362,40314.0,40312.0,0.05]
[1643996068636,0.8239362,40314.0,40308.0,0.01931002]
[1643996069238,0.14802708,40309.0,40307.0,0.0180239]
[1643996070479,0.8239362,40314.0,40307.0,0.0180239]
[1643996070878,0.8239362,40314.0,40308.0,0.05]
[1643996071080,0.8239362,40314.0,40308.0,5.01519345]
[1643996071081,0.062026,40313.0,40308.0,5.01519345]
[1643996071680,0.4339382,40314.0,40309.0,0.38211563]
[1643996071881,0.4339382,40314.0,40313.0,0.05]
[1643996072479,0.4339382,40314.0,40311.0,0.05]
[1643996072681,1.13268537,40313.0,40307.0,0.174035]
[1643996072882,1.13268537,40313.0,40307.0,5.04133408]
[1643996073081,1.13268537,40313.0,40310.0,0.05]
[1643996073330,1.47355224,40313.0,40310.0,0.112018]
[1643996073530,1.47355224,40313.0,40310.0,0.062018]
[1643996073733,0.3162168,40312.0,40307.0,0.124035]
[1643996073931,0.31984869,40310.0,40301.0,0.75083711]
[1643996074229,0.08971993,40309.0,40301.0,0.75083711]
[1643996074429,0.08971993,40309.0,40301.0,0.00753711]
[1643996074629,0.45006146,40306.0,40301.0,0.00753711]
[1643996074929,0.45006146,40306.0,40301.0,0.06956811]
[1643996075130,0.11711225,40304.0,40301.0,0.06956811]
[1643996075629,0.11711225,40304.0,40301.0,0.11956811]
[1643996075828,0.45006146,40306.0,40301.0,0.11956811]
[1643996076031,0.45006146,40306.0,40301.0,0.16956811]
[1643996076230,0.45006146,40306.0,40301.0,0.11956811]
[1643996076429,0.45006146,40306.0,40301.0,0.16956811]
[1643996076829,0.13009581,40305.0,40301.0,0.11956811]
[1643996078086,1.45006146,40306.0,40301.0,0.11956811]
[1643996079484,1.45006146,40306.0,40301.0,0.18159111]
[1643996079685,1.0,40306.0,40305.0,0.65]
[1643996079887,1.0,40306.0,40305.0,0.712017]
[1643996080085,1.0,40306.0,40305.0,0.112017]
[1643996080288,1.0,40306.0,40305.0,4.80004802]
[1643996080588,1.0,40306.0,40305.0,4.98029097]
[1643996081929,1.0,40306.0,40305.0,4.93029097]
[1643996082132,1.08918279,40306.0,40301.0,0.00753711]
[1643996082431,1.08918279,40306.0,40300.0,0.01873645]
[1643996082432,0.11441822,40305.0,40300.0,0.01873645]
[1643996082629,1.0,40306.0,40300.0,0.01873645]
[1643996083328,2.0,40306.0,40300.0,0.01873645]
[1643996083530,2.0,40306.0,40299.0,0.124054]
[1643996083531,0.11892375,40303.0,40299.0,0.124054]
[1643996084129,2.0,40306.0,40299.0,0.124054]
[1643996084332,2.0,40306.0,40301.0,0.05]
[1643996084782,2.0,40306.0,40301.0,0.1]
[1643996085182,2.15611843,40306.0,40301.0,0.05]
[1643996085583,2.15611843,40306.0,40299.0,0.174054]
[1643996085786,2.15611843,40306.0,40302.0,0.062025]
[1643996087285,2.15611843,40306.0,40299.0,0.174054]
[1643996087883,2.0,40306.0,40302.0,0.05]
[1643996088085,1.9998878,40306.0,40302.0,0.05]
[1643996088533,1.9998878,40306.0,40301.0,0.062025]
[1643996088932,0.13727509,40305.0,40301.0,0.062025]
[1643996089534,1.9998878,40306.0,40301.0,0.062025]
[1643996089734,1.9998878,40306.0,40303.0,0.05]
[1643996090136,1.9998878,40306.0,40305.0,0.062023]
[1643996091537,1.9998878,40306.0,40305.0,5.26292011]
[1643996091738,1.4805632,40306.0,40305.0,5.79399197]
[1643996091977,1.4805632,40306.0,40305.0,4.94399197]
[1643996092176,1.4805632,40306.0,40305.0,5.04399197]
[1643996092978,1.4805632,40306.0,40305.0,5.4637851]
[1643996093180,1.4805632,40306.0,40305.0,5.04399197]
[1643996093780,2.4805632,40306.0,40305.0,5.04399197]
[1643996094182,2.4805632,40306.0,40305.0,4.94399197]
[1643996095483,2.4805632,40306.0,40305.0,5.47050649]
[1643996095736,2.4805632,40306.0,40305.0,5.37050649]
[1643996096535,2.4805632,40306.0,40305.0,4.88196897]
[1643996097135,2.4805632,40306.0,40305.0,5.20125181]
[1643996097335,2.4805632,40306.0,40305.0,4.88196897]
[1643996097938,2.4805632,40306.0,40305.0,5.20125181]
[1643996098537,2.4805632,40306.0,40305.0,4.88196897]
[1643996099581,2.4805632,40306.0,40305.0,5.20125181]
[1643996099779,2.4805632,40306.0,40305.0,4.88196897]
[1643996099980,2.4805632,40306.0,40305.0,4.76998604]
[1643996100382,2.4805632,40306.0,40305.0,4.65779213]
[1643996100981,2.4805632,40306.0,40304.0,4.65779213]
[1643996102482,2.4805632,40306.0,40300.0,0.04053195]
[1643996102483,2.4805632,40306.0,40305.0,4.90872655]
[1643996103840,2.4805632,40306.0,40303.0,4.90872655]
[1643996104146,2.4805632,40306.0,40303.0,4.95872655]
[1643996106983,2.4805632,40306.0,40303.0,5.33105057]
[1643996107182,2.4805632,40306.0,40303.0,5.45509957]
[1643996107383,2.4805632,40306.0,40304.0,4.85029589]
[1643996108785,2.4805632,40306.0,40305.0,0.062024]
[1643996108986,2.4805632,40306.0,40305.0,4.93732453]
[1643996109185,1.98107669,40306.0,40305.0,4.93732453]
[1643996109389,1.98107669,40306.0,40305.0,5.08302453]
[1643996109786,1.98107669,40306.0,40305.0,5.38732932]
[1643996109986,1.98107669,40306.0,40305.0,5.43732932]
[1643996111243,1.98107669,40306.0,40305.0,5.08605797]
[1643996111442,1.98107669,40306.0,40305.0,5.03605797]
[1643996111944,1.98107669,40306.0,40305.0,4.93605797]
[1643996112140,1.98107669,40306.0,40305.0,4.98605797]
[1643996112740,1.98107669,40306.0,40305.0,5.08605797]
[1643996113142,1.98107669,40306.0,40305.0,5.04035797]
[1643996114587,1.98107669,40306.0,40305.0,5.09035797]
[1643996114784,1.98107669,40306.0,40305.0,5.11698298]
[1643996116689,1.98107669,40306.0,40305.0,5.16658298]
[1643996116888,0.93249728,40306.0,40305.0,5.16658298]
[1643996117088,1.33976191,40306.0,40305.0,5.17815494]
[1643996117284,0.59577391,40306.0,40305.0,5.17815494]
[1643996117484,0.59577391,40306.0,40305.0,5.52919276]
[1643996117885,0.9635318,40313.0,40306.0,1.66200114]
[1643996118085,0.9635318,40313.0,40312.0,0.11953826]
[1643996118336,0.9635318,40313.0,40312.0,5.17796945]
[1643996118836,0.9635318,40313.0,40312.0,5.27796945]
[1643996119035,0.9635318,40313.0,40312.0,5.77796945]
[1643996120137,0.95505776,40313.0,40312.0,5.77796945]
[1643996120540,0.95301556,40313.0,40312.0,5.77796945]
[1643996120740,0.11285005,40313.0,40312.0,5.80267945]
[1643996121240,0.17484325,40314.0,40313.0,1.5]
[1643996121439,0.17484325,40314.0,40313.0,4.72456039]
[1643996121640,0.17484325,40314.0,40313.0,4.82456039]
[1643996122210,0.17484325,40314.0,40313.0,4.84927039]
[1643996122912,0.29506175,40314.0,40313.0,4.72456039]
[1643996123111,0.14126614,40314.0,40313.0,4.67496039]
[1643996123912,0.56489983,40314.0,40296.0,0.41953133]
[1643996124111,0.56489983,40314.0,40295.0,0.42587588]
[1643996124112,0.13158295,40303.0,40302.0,0.5]
[1643996124311,0.13158295,40303.0,40302.0,4.84470336]
[1643996124713,0.05,40311.0,40302.0,4.84470336]
[1643996124913,0.124063,40310.0,40302.0,4.84470336]
[1643996125116,0.33881645,40304.0,40302.0,4.84470336]
[1643996125515,0.33881645,40304.0,40302.0,4.86561628]
[1643996125745,0.33881645,40304.0,40302.0,4.91561628]
[1643996126742,1.0,40311.0,40303.0,0.124048]
[1643996127039,0.13069403,40309.0,40303.0,4.80438124]
[1643996127643,0.34897376,40306.0,40303.0,4.80438124]
[1643996130682,0.41100576,40306.0,40303.0,4.80438124]
[1643996131584,0.34897376,40306.0,40303.0,4.80438124]
[1643996132788,0.34897376,40306.0,40303.0,4.86641124]
[1643996133238,0.34897376,40306.0,40303.0,4.86601124]
[1643996133932,0.06203,40309.0,40303.0,4.86601124]
[1643996134136,1.0,40311.0,40303.0,4.86601124]
[1643996134333,1.0,40311.0,40304.0,0.062024]
[1643996134532,1.0,40311.0,40306.0,0.062023]
[1643996134933,0.11697723,40309.0,40306.0,0.062023]
[1643996135337,0.36190102,40310.0,40306.0,0.062023]
[1643996135535,0.36156521,40310.0,40306.0,0.062023]
[1643996136333,0.47729751,40310.0,40304.0,0.174045]
[1643996136834,0.07737396,40307.0,40304.0,0.05]
[1643996137092,0.07737396,40307.0,40300.0,0.15]
[1643996137093,0.337512,40306.0,40300.0,0.15]
[1643996137490,0.65514648,40301.0,40300.0,0.1703504]
[1643996137689,0.37936921,40302.0,40300.0,0.1703504]
[1643996138289,0.37936921,40302.0,40300.0,0.1203504]
[1643996138690,0.78309999,40301.0,40300.0,0.1203504]
[1643996138890,0.13309999,40301.0,40300.0,0.1203504]
[1643996139190,0.37936921,40302.0,40300.0,0.1203504]
[1643996139791,0.37936921,40302.0,40300.0,0.1]
[1643996140191,0.1288042,40301.0,40300.0,0.15]
[1643996140394,0.16039519,40302.0,40300.0,0.135]
[1643996141435,0.29242719,40302.0,40300.0,0.135]
[1643996141639,0.16039519,40302.0,40300.0,0.135]
[1643996141834,0.69854,40306.0,40300.0,0.135]
[1643996142838,0.54455034,40301.0,40300.0,0.135]
[1643996143435,0.41904713,40301.0,40300.0,0.135]
[1643996144489,0.12377427,40304.0,40300.0,0.135]
[1643996145089,0.12377427,40304.0,40300.0,0.197037]
[1643996145592,0.46159572,40303.0,40300.0,0.197037]
[1643996146191,0.46159572,40303.0,40300.0,0.135]
[1643996146991,0.6365,40306.0,40300.0,0.135]
[1643996147591,0.91801719,40302.0,40300.0,0.135]
[1643996148247,0.91801719,40302.0,40300.0,0.1342704]
[1643996148441,0.91771952,40302.0,40300.0,0.1342704]
[1643996149842,0.15972988,40298.0,40293.0,0.40679979]
[1643996150046,0.05,40295.0,40293.0,5.02202918]
[1643996150245,0.05,40295.0,40293.0,4.96553778]
[1643996150445,0.91771952,40302.0,40301.0,0.062038]
[1643996151844,0.91771952,40302.0,40299.0,0.112038]
[1643996152784,0.91771952,40302.0,40300.0,0.062036]
[1643996152985,0.91771952,40302.0,40301.0,0.15]
[1643996153186,0.91771952,40302.0,40300.0,0.062036]
[1643996153386,0.91771952,40302.0,40301.0,0.15]
[1643996153584,0.91771952,40302.0,40301.0,0.25]
[1643996154585,0.91771952,40302.0,40301.0,0.05]
[1643996154783,0.91771952,40302.0,40301.0,0.1]
[1643996154985,1.00893977,40302.0,40300.0,0.062036]
[1643996155288,1.00893977,40302.0,40298.0,0.124073]
[1643996155484,0.12685021,40299.0,40298.0,0.124073]
[1643996155749,0.12685021,40299.0,40298.0,4.89774996]
[1643996155945,1.00893977,40302.0,40298.0,4.89774996]
[1643996156343,1.24213986,40299.0,40298.0,4.77367696]
[1643996156642,1.00893977,40302.0,40297.0,4.78309452]
[1643996156843,0.15539659,40298.0,40296.0,0.08304919]
[1643996157242,0.15159659,40298.0,40296.0,0.08304919]
[1643996157442,0.15159659,40298.0,40296.0,4.86614371]
[1643996157644,0.61987379,40298.0,40296.0,4.86614371]
[1643996158344,0.61987379,40298.0,40296.0,4.80409771]
[1643996158548,0.61987379,40298.0,40296.0,4.86614571]
[1643996158747,0.4682772,40298.0,40296.0,4.86614571]
[1643996160087,0.4682772,40298.0,40296.0,4.80409771]
[1643996160386,0.13063344,40300.0,40296.0,4.78309452]
[1643996160586,0.13063344,40300.0,40297.0,0.072]
[1643996160786,0.13063344,40300.0,40292.0,0.01914339]
[1643996160985,0.13063344,40300.0,40297.0,0.0592]
[1643996161388,0.4138658,40299.0,40297.0,0.0592]
[1643996162587,0.4138658,40299.0,40296.0,0.062043]
[1643996163240,0.4138658,40299.0,40291.0,0.124086]
[1643996163438,0.37488471,40292.0,40291.0,0.124086]
[1643996163635,0.37488471,40292.0,40291.0,4.85547315]
[1643996163838,0.08524503,40297.0,40291.0,4.85547315]
[1643996164035,0.13063344,40300.0,40291.0,4.85547315]
[1643996164535,0.13063344,40300.0,40291.0,4.91752015]
[1643996164736,0.13063344,40300.0,40297.0,0.076]
[1643996164936,0.46158938,40298.0,40297.0,0.076]
[1643996166540,1.45,40296.0,40291.0,0.124086]
[1643996166743,0.05,40294.0,40288.0,0.00020905]
[1643996166987,0.15018113,40293.0,40285.0,0.12432305]
[1643996167195,0.15018113,40293.0,40285.0,0.124114]
[1643996167388,0.15018113,40293.0,40285.0,0.12432305]
[1643996167590,0.43688328,40286.0,40285.0,0.12432305]
[1643996167788,0.43688328,40286.0,40285.0,0.124114]
[1643996168891,0.43688328,40286.0,40285.0,0.201114]
[1643996169293,0.43688328,40286.0,40285.0,0.196114]
[1643996169888,0.35586208,40286.0,40285.0,0.61893791]
[1643996170089,0.35586208,40286.0,40285.0,0.6183245]
[1643996170290,0.35586208,40286.0,40285.0,0.4992105]
[1643996170742,0.35586208,40286.0,40285.0,0.4222105]
[1643996171135,0.0218202,40294.0,40285.0,0.4722105]
[1643996171337,0.0218202,40294.0,40291.0,0.05]
[1643996171935,0.02155725,40298.0,40290.0,0.37282391]
[1643996172136,0.14244981,40295.0,40290.0,0.37282391]
[1643996172435,0.14244981,40295.0,40289.0,0.41881191]
[1643996172636,0.14244981,40295.0,40289.0,0.42282391]
[1643996172836,0.34426039,40297.0,40289.0,0.42282391]
[1643996173035,0.34426039,40297.0,40295.0,0.067]
[1643996173935,0.48181806,40297.0,40295.0,0.067]
[1643996174490,0.3437563,40297.0,40295.0,0.067]
[1643996175188,0.3437563,40297.0,40293.0,0.062047]
[1643996175390,0.91771952,40302.0,40294.0,0.38746989]
[1643996175589,0.91771952,40302.0,40294.0,0.062046]
[1643996175791,0.91771952,40302.0,40294.0,0.38531519]
[1643996175991,0.91771952,40302.0,40294.0,0.062046]
[1643996176391,0.91771952,40302.0,40295.0,0.06204051]
[1643996176591,0.91771952,40302.0,40294.0,0.062046]
[1643996176592,0.14346243,40297.0,40294.0,0.062046]
[1643996176794,0.91771952,40302.0,40294.0,0.062046]
[1643996177394,0.40140342,40297.0,40294.0,0.062046]
[1643996177792,0.40140342,40297.0,40294.0,0.124094]
[1643996178637,0.487906,40293.0,40291.0,0.23614164]
[1643996178838,0.487906,40293.0,40291.0,0.18614164]
[1643996179040,0.487906,40293.0,40291.0,0.124095]
[1643996179442,0.48480763,40293.0,40291.0,0.124095]
[1643996179839,0.48480763,40293.0,40291.0,0.174095]
[1643996180238,0.48480763,40293.0,40291.0,0.124095]
[1643996180639,0.62778383,40293.0,40289.0,0.062056]
[1643996180838,0.55078383,40293.0,40289.0,0.062056]
[1643996181839,1.55078383,40293.0,40289.0,0.062056]
[1643996182092,1.55078383,40293.0,40290.0,0.062053]
[1643996182689,1.40780763,40293.0,40290.0,0.062053]
[1643996182896,1.40780763,40293.0,40292.0,1.3]
[1643996183093,1.40780763,40293.0,40292.0,6.61165202]
[1643996183294,2.04597278,40311.0,40292.0,6.61165202]
[1643996183295,1.0,40311.0,40293.0,1.6]
[1643996183493,1.0,40311.0,40301.0,0.85]
[1643996183694,1.0,40311.0,40301.0,5.80690402]
[1643996183898,1.0,40311.0,40301.0,5.25690402]
[1643996183899,0.54563052,40302.0,40301.0,5.25690402]
[1643996184994,0.54563052,40302.0,40301.0,5.19229393]
[1643996185193,0.54563052,40302.0,40301.0,5.29229393]
[1643996186644,0.54563052,40302.0,40301.0,5.69939072]
[1643996186645,0.47163052,40302.0,40301.0,5.69939072]
[1643996187044,0.47163052,40302.0,40301.0,5.29229393]
[1643996187847,0.47163052,40302.0,40301.0,4.29229393]
[1643996188447,0.39963052,40302.0,40301.0,0.207718]
[1643996188647,0.39963052,40302.0,40301.0,0.53838436]
[1643996189049,0.39963052,40302.0,40301.0,0.58838436]
[1643996189248,0.39963052,40302.0,40301.0,0.59268436]
[1643996189493,0.39963052,40302.0,40301.0,0.262018]
[1643996189694,0.39963052,40302.0,40301.0,0.59035991]
[1643996189897,0.36004009,40301.0,40300.0,0.31763165]
[1643996190095,0.36004009,40301.0,40300.0,0.35561426]
[1643996190096,0.28404009,40301.0,40300.0,0.35561426]
[1643996190297,0.28404009,40301.0,40300.0,5.15126069]
[1643996190496,0.28404009,40301.0,40300.0,5.10166069]
[1643996192102,0.5873144,40301.0,40300.0,4.91560469]
[1643996192304,0.5873144,40301.0,40294.0,0.12407769]
[1643996192506,0.5873144,40301.0,40288.0,0.921891]
[1643996192507,0.18363461,40295.0,40288.0,0.921891]
[1643996192702,1.52356284,40294.0,40288.0,0.871891]
[1643996192902,0.77356284,40294.0,40288.0,4.7771231]
[1643996193344,0.77356284,40294.0,40289.0,0.06205223]
[1643996193543,0.05,40292.0,40290.0,0.06205]
[1643996193746,0.05,40292.0,40290.0,4.7771301]
[1643996194543,0.05,40292.0,40290.0,4.7150821]
[1643996195047,0.38064494,40294.0,40292.0,0.016]
[1643996195342,0.38064494,40294.0,40292.0,0.07804498]
[1643996196142,0.38064494,40294.0,40292.0,0.14008998]
[1643996196543,0.38064494,40294.0,40292.0,0.12408998]
[1643996196990,0.68346912,40294.0,40292.0,0.12408998]
[1643996197191,0.38064494,40294.0,40292.0,0.12408998]
[1643996198193,0.28404009,40301.0,40293.0,0.05]
[1643996198396,0.28404009,40301.0,40300.0,0.05]
[1643996198595,0.28404009,40301.0,40300.0,0.062029]
[1643996198793,0.28404009,40301.0,40300.0,4.82640338]
[1643996199894,0.28404009,40301.0,40300.0,4.77640338]
[1643996200096,0.28404009,40301.0,40300.0,4.82640338]
[1643996201544,0.33126346,40302.0,40301.0,1.6]
[1643996201742,0.01893064,40306.0,40301.0,1.6]
[1643996201743,0.01893064,40306.0,40304.0,0.062007]
[1643996201944,1.0,40311.0,40305.0,1.885603]
[1643996202144,1.0,40311.0,40310.0,0.05]
[1643996202145,0.62801775,40311.0,40310.0,0.05]
[1643996202345,0.62801775,40311.0,40310.0,4.98662576]
[1643996202542,0.25603675,40311.0,40310.0,4.98662576]
[1643996202745,0.00034358,40313.0,40310.0,5.02862376]
[1643996202944,0.16127303,40314.0,40312.0,0.185991]
[1643996203142,0.16127303,40314.0,40313.0,0.0796]
[1643996203143,0.16161661,40314.0,40313.0,0.0796]
[1643996203342,0.16127303,40314.0,40313.0,4.93424433]
[1643996203948,0.14126614,40314.0,40313.0,4.99624133]
[1643996204147,0.14126614,40314.0,40313.0,0.111597]
[1643996204344,0.14126614,40314.0,40313.0,4.96624133]
[1643996204599,0.14126614,40314.0,40313.0,0.111597]
[1643996204900,0.58509629,40314.0,40313.0,0.111597]
[1643996205601,0.58509629,40314.0,40313.0,0.061997]
[1643996206200,0.58509629,40314.0,40310.0,0.123988]
[1643996206401,0.02,40311.0,40310.0,0.123988]
[1643996207204,0.02,40311.0,40306.0,0.248082]
[1643996207400,0.02,40307.0,40306.0,0.248082]
[1643996208541,0.00034358,40312.0,40306.0,0.248082]
[1643996208743,0.02,40312.0,40310.0,0.03]
[1643996208941,0.00034358,40312.0,40310.0,0.154015]
[1643996209146,1.00034358,40313.0,40311.0,0.06200694]
[1643996209339,1.0,40313.0,40311.0,0.06200694]
[1643996210344,1.0,40313.0,40311.0,0.12401494]
[1643996210542,1.0,40313.0,40309.0,0.062007]
[1643996210543,0.02,40312.0,40309.0,0.062007]
[1643996213604,0.02,40312.0,40310.0,0.06201196]
[1643996213904,0.02,40312.0,40311.0,0.062013]
[1643996214705,0.02,40312.0,40311.0,0.05101811]
[1643996215308,1.0,40313.0,40311.0,0.08101811]
[1643996215511,1.0,40313.0,40312.0,0.33538534]
[1643996215953,1.0,40313.0,40311.0,0.08101811]
[1643996216552,1.0,40313.0,40311.0,0.07601811]
[1643996218855,0.14310599,40312.0,40311.0,0.07601811]
[1643996219056,0.14310599,40312.0,40311.0,0.04601811]
[1643996219495,0.02,40312.0,40311.0,0.04601811]
[1643996219695,1.0,40313.0,40311.0,0.07601811]
[1643996220297,1.0,40313.0,40311.0,0.13802279]
[1643996220495,1.0,40313.0,40312.0,0.12401]
[1643996222301,0.934,40313.0,40312.0,0.12401]
[1643996224443,0.858,40313.0,40312.0,0.12401]
[1643996225245,0.858,40313.0,40312.0,0.17401]
[1643996226846,0.792,40313.0,40312.0,0.17401]
[1643996227099,0.68613034,40313.0,40312.0,5.25095606]
[1643996227298,0.14126614,40314.0,40313.0,1.6]
[1643996227497,0.00034358,40315.0,40314.0,1.6]
[1643996227698,0.000395,40317.0,40315.0,1.0]
[1643996227895,1.0,40320.0,40315.0,1.0]
[1643996227896,2.254197,40319.0,40316.0,0.58352214]
[1643996228096,2.21692011,40319.0,40318.0,1.32609656]
[1643996228296,1.47321011,40319.0,40318.0,5.41914711]
[1643996228599,1.47038183,40319.0,40318.0,5.41914711]
[1643996228897,0.06858183,40319.0,40318.0,5.41914711]
[1643996229100,0.02,40333.0,40319.0,1.69666412]
[1643996229298,0.02,40333.0,40328.0,0.08]
[1643996229498,0.02,40333.0,40328.0,0.1296]
[1643996229698,0.02,40333.0,40328.0,0.0796]
[1643996229898,0.02,40333.0,40328.0,0.0496]
[1643996230098,0.02,40333.0,40328.0,0.0796]
[1643996230296,0.44068678,40334.0,40328.0,0.07876185]
[1643996230497,0.02,40330.0,40328.0,0.07876185]
[1643996230942,0.02,40330.0,40328.0,0.04876185]
[1643996231255,0.02,40330.0,40318.0,0.0523]
[1643996231256,0.17,40330.0,40318.0,0.0523]
[1643996231446,0.13450131,40326.0,40319.0,0.06199481]
[1643996231642,0.03,40329.0,40321.0,0.061989]
[1643996231841,0.01,40329.0,40321.0,0.061989]
[1643996232045,0.02,40325.0,40321.0,4.95906994]
[1643996232243,0.02,40325.0,40322.0,0.0027]
[1643996232442,0.01,40329.0,40326.0,0.072]
[1643996232658,0.34834483,40327.0,40326.0,0.072]
[1643996233444,0.66301296,40327.0,40326.0,0.072]
[1643996233846,1.00052496,40327.0,40326.0,0.072]
[1643996234042,0.66301296,40327.0,40322.0,0.0027]
[1643996235094,0.72501796,40327.0,40322.0,0.0027]
[1643996235295,0.72501796,40327.0,40317.0,0.062004]
[1643996235494,0.30316305,40322.0,40317.0,0.062004]
[1643996235895,0.15316305,40322.0,40317.0,0.062004]
[1643996236098,0.30316305,40322.0,40317.0,0.062004]
[1643996236398,0.40802705,40319.0,40317.0,0.062004]
[1643996237397,2.142991,40317.0,40314.0,0.174004]
[1643996237597,2.142991,40317.0,40314.0,5.12591028]
[1643996238000,2.142991,40317.0,40316.0,1.3]
[1643996238256,1.7434601,40317.0,40316.0,0.1996]
[1643996238450,1.7434601,40317.0,40316.0,5.25825057]
[1643996239052,1.7434601,40317.0,40316.0,5.59142595]
[1643996239250,1.3715611,40317.0,40316.0,5.61613595]
[1643996239450,1.3715611,40317.0,40316.0,6.02095319]
[1643996239849,0.9996661,40317.0,40316.0,5.61613595]
[1643996240451,0.9996661,40317.0,40316.0,5.60939166]
[1643996240651,0.9996661,40317.0,40316.0,6.10939166]
[1643996241051,0.6277711,40317.0,40316.0,6.10939166]
[1643996241353,0.6277711,40317.0,40316.0,6.11209166]
[1643996241752,0.2558781,40317.0,40316.0,6.11209166]
[1643996242196,0.01,40329.0,40319.0,0.061982]
[1643996242395,0.01,40329.0,40328.0,0.061983]
[1643996243398,0.07192697,40332.0,40328.0,0.061983]
[1643996244598,0.07192697,40332.0,40329.0,0.0027]
[1643996245202,0.585,40330.0,40329.0,0.0027]
[1643996245401,0.035,40330.0,40329.0,0.0027]
[1643996246247,0.39395028,40330.0,40329.0,0.0027]
[1643996247057,0.74395028,40330.0,40329.0,0.0027]
[1643996247246,0.74395028,40330.0,40321.0,0.00753394]
[1643996247247,0.16130964,40323.0,40321.0,0.00753394]
[1643996247449,0.39395028,40330.0,40317.0,0.23598538]
[1643996247648,0.39395028,40330.0,40317.0,5.24331331]
[1643996247854,0.39395028,40330.0,40322.0,0.05]
[1643996248048,0.01881841,40326.0,40322.0,0.05]
[1643996248250,0.01881841,40326.0,40324.0,0.061991]
[1643996248448,0.01881841,40326.0,40324.0,0.12397742]
[1643996248648,0.01881841,40326.0,40325.0,0.05]
[1643996250002,0.01881841,40326.0,40325.0,5.68314134]
[1643996250200,0.00034335,40328.0,40325.0,5.83274134]
[1643996250401,0.00034335,40329.0,40328.0,0.511979]
[1643996250599,0.03534335,40330.0,40328.0,5.35609552]
[1643996250799,0.035,40330.0,40329.0,5.21707341]
[1643996250999,0.035,40330.0,40329.0,4.86232379]
[1643996254545,0.035,40330.0,40329.0,4.91192379]
[1643996255545,0.00992697,40332.0,40329.0,4.91192379]
[1643996255744,0.00992697,40332.0,40329.0,4.97390279]
[1643996257407,0.00392697,40334.0,40331.0,0.061976]
[1643996257908,0.00392697,40334.0,40333.0,0.123953]
[1643996261550,0.00392697,40334.0,40330.0,0.173954]
[1643996262151,0.00392697,40334.0,40330.0,4.8439924]
[1643996263051,0.15,40336.0,40335.0,0.09272975]
[1643996264900,0.15,40336.0,40330.0,0.123954]
[1643996265498,0.062983,40337.0,40330.0,5.09759436]
[1643996265699,0.062983,40337.0,40330.0,5.14759436]
[1643996265898,0.06332628,40337.0,40330.0,5.14759436]
[1643996266100,0.06332628,40337.0,40330.0,5.09759436]
[1643996266502,0.15,40336.0,40330.0,5.09759436]
[1643996266702,0.15034328,40336.0,40330.0,5.09759436]
[1643996267203,0.15034328,40336.0,40330.0,5.15957318]
[1643996267505,0.15034328,40336.0,40331.0,0.061976]
[1643996267506,0.00034328,40336.0,40331.0,0.061976]
[1643996267702,0.00134328,40337.0,40331.0,5.05704112]
[1643996267902,0.00034328,40336.0,40331.0,5.05704112]
[1643996268104,0.00134328,40337.0,40332.0,0.08594516]
[1643996268353,0.00034328,40336.0,40332.0,0.08594516]
[1643996268550,0.00134328,40337.0,40332.0,0.06197519]
[1643996268753,0.00034328,40336.0,40332.0,0.06197519]
[1643996269051,0.001,40337.0,40333.0,0.061974]
[1643996271153,0.15,40334.0,40333.0,0.061974]
[1643996278046,0.15,40334.0,40333.0,0.40589121]
[1643996278846,0.15,40334.0,40333.0,0.061974]
[1643996279248,0.15,40334.0,40333.0,0.41203665]
[1643996279502,0.15,40334.0,40333.0,0.061974]
[1643996280708,0.00034328,40336.0,40333.0,0.5573953]
[1643996280909,0.001,40337.0,40334.0,0.123935]
[1643996281118,0.02866249,40339.0,40337.0,0.6]
[1643996281305,0.02866249,40339.0,40338.0,4.81233144]
[1643996281507,0.02866249,40339.0,40338.0,4.91233144]
[1643996281709,0.001,40346.0,40339.0,1.1]